fUST/lending_fUST_20250311
["ID","MTS","AMOUNT","RATE_DAILY","PERIOD"]
[355870100,1741656643900,-1003.11643765,0.0005,120]
[355870101,1741656643910,-2506.27814953,0.0005,7]
[355870103,1741656643920,-650.76193848,0.00050076,91]
[355870105,1741656643930,-160.0,0.00050078,9]
[355870107,1741656643940,-4420.28,0.000501,30]
[355870108,1741656643950,-468.82840765,0.00050163,120]
[355870109,1741656643959,-156.0392066,0.00050164,30]
[355870110,1741656643969,-650.76193848,0.00050176,95]
[355870111,1741656643979,-419.06503209,0.00050221,120]
[355870113,1741656643988,-1024.04983663,0.00050271,11]
[355870114,1741656643998,-650.76193848,0.00050276,91]
[355870115,1741656644008,-656.95,0.000503,48]
[355870116,1741656644018,-121.39336463,0.000503,48]
[355870119,1741656644284,-5.84096833,0.000503,48]
[355870120,1741656644298,-529.71566704,0.000503,48]
[355870121,1741656644308,-656.95,0.000503,48]
[355870122,1741656644318,-656.95,0.000503,48]
[355870123,1741656644328,-656.95,0.000503,48]
[355870124,1741656644338,-291.77034421,0.000503,48]
[355870134,1741656646757,-365.17965579,0.000503,48]
[355870136,1741656646769,-656.95,0.000503,48]
[355870137,1741656646779,-656.95,0.000503,48]
[355870139,1741656646788,-446.98765772,0.000503,48]
[355870155,1741656647106,-209.96234228,0.000503,48]
[355870157,1741656647116,-656.95,0.000503,48]
[355870159,1741656647126,-656.95,0.000503,48]
[355870161,1741656647136,-656.95,0.000503,48]
[355870162,1741656647145,-200.00348725,0.0005033,28]
[355870163,1741656647155,-650.76193848,0.00050376,100]
[355870164,1741656647164,-711.919655,0.00050389,120]
[355870165,1741656647174,-151.0,0.000504,29]
[355870166,1741656647184,-155.3619476,0.00050411,30]
[355870167,1741656647195,-155.3619476,0.00050411,30]
[355870168,1741656647205,-155.3619476,0.00050411,30]
[355870169,1741656647215,-155.3619476,0.00050411,30]
[355870170,1741656647224,-650.76193848,0.00050476,92]
[355870171,1741656647235,-171.82,0.00050479,30]
[355870172,1741656647244,-433.0,0.00050486,120]
[355870173,1741656647254,-262.45,0.000505,30]
[355870174,1741656647264,-503.29709433,0.000505,30]
[355870175,1741656658234,5388.06289885,0.00039251,70]
[355870176,1741656658257,1191.13602725,0.00039251,70]
[355870178,1741656678561,201.16289294,0.00038292,2]
[355870179,1741656679642,420.61444593,0.0003377,2]
[355870180,1741656719316,167.678826,0.0003589,2]
[355870181,1741656735957,500.0,0.0003,30]
[355870182,1741656736863,500.0,0.0003,30]
[355870183,1741656737230,500.0,0.0003,30]
[355870184,1741656737624,500.0,0.0003,30]
[355870185,1741656737971,500.0,0.0003,30]
[355870186,1741656738368,500.0,0.0003,30]
[355870187,1741656738655,500.0,0.0003,30]
[355870188,1741656738684,500.0,0.0003,30]
[355870189,1741656738717,500.0,0.0003,30]
[355870190,1741656739045,500.0,0.0003,30]
[355870191,1741656739098,187.74350167,0.00028011,2]
[355870192,1741656739127,641.16257818,0.00028011,2]
[355870193,1741656739161,500.0,0.00028011,2]
[355870194,1741656739377,930.01257584,0.00028011,2]
[355870195,1741656739964,500.0,0.00028011,2]
[355870196,1741656740398,500.0,0.00028011,2]
[355870197,1741656740765,233.45161412,0.00028011,2]
[355870198,1741656744987,-157.9836814,0.00045572,120]
[355870199,1741656745010,-500.0,0.00048299,120]
[355870200,1741656745031,-393.6163186,0.00048299,120]
[355870201,1741656763814,1650.0400624,0.00027,60]
[355870205,1741657190474,2654.45,0.00027,60]
[355870217,1741657665451,150.0,0.000249,2]
[355870218,1741657701223,1202.0,0.00026,2]
[355870220,1741657746131,-2552.77,0.00026,2]
[355870221,1741657746154,-1000.0,0.00028,2]
[355870222,1741657746177,-190.33,0.00028011,2]
[355870223,1741657746200,-500.0,0.00029,2]
[355870224,1741657746222,-524.6449663,0.00029,2]
[355870225,1741657746244,-500.0,0.00029,2]
[355870226,1741657746267,-500.0,0.00029,2]
[355870227,1741657746288,-500.0,0.00029,2]
[355870228,1741657746309,-500.0,0.00029,2]
[355870229,1741657746331,-500.0,0.00029,2]
[355870230,1741657746354,-500.0,0.00029,2]
[355870231,1741657746375,-500.0,0.00029,2]
[355870232,1741657746401,-738.78236737,0.00029,2]
[355870233,1741657746423,-150.0,0.000299,2]
[355870234,1741657746443,-518.0,0.0003,30]
[355870235,1741657746466,-1000.0,0.0003,30]
[355870236,1741657746490,-983.23428014,0.0003,2]
[355870237,1741657746515,-500.0,0.0003,30]
[355870238,1741657746539,-500.0,0.0003,30]
[355870239,1741657746820,-878.37349031,0.0003,30]
[355870240,1741657746847,-500.0,0.0003,30]
[355870241,1741657746868,-500.0,0.0003,30]
[355870242,1741657746889,-500.0,0.0003,30]
[355870243,1741657746910,-500.0,0.0003,30]
[355870244,1741657746931,-500.0,0.0003,30]
[355870245,1741657746953,-500.0,0.0003,30]
[355870246,1741657746975,-500.0,0.0003,30]
[355870247,1741657746997,-500.0,0.0003,30]
[355870248,1741657747017,-181.722,0.00035,5]
[355870249,1741657747038,-154.38090053,0.0003588,2]
[355870250,1741657747058,-206.0,0.00037,120]
[355870251,1741657747082,-201.0,0.00037524,2]
[355870252,1741657747118,-202.23996758,0.00038235,2]
[355870253,1741657747145,-500.0,0.00038334,2]
[355870254,1741657747172,-500.0,0.00038334,2]
[355870255,1741657747197,-572.11429848,0.00038334,15]
[355870256,1741657747221,-500.0,0.00038334,2]
[355870257,1741657747245,-500.0,0.00038334,2]
[355870258,1741657747269,-500.0,0.00038334,2]
[355870259,1741657747295,-500.0,0.00038334,2]
[355870260,1741657747317,-500.0,0.00038334,2]
[355870261,1741657747342,-500.0,0.00038334,2]
[355870262,1741657747365,-500.0,0.00038334,2]
[355870263,1741657747389,-500.0,0.00038334,2]
[355870264,1741657747411,-389.45534546,0.00038334,2]
[355870265,1741657747435,-500.0,0.00038334,2]
[355870266,1741657747457,-538.40141432,0.00038334,2]
[355870267,1741657747481,-500.0,0.00038334,2]
[355870268,1741657747502,-8867.22609353,0.00038335,61]
[355870269,1741657748133,-1052.04837285,0.00038335,61]
[355870270,1741657748171,-5000.0,0.00038335,67]
[355870271,1741657748215,-4089.787596,0.00038335,62]
[355870272,1741657755095,-910.212404,0.00038335,62]
[355870273,1741657755119,-5000.0,0.00038335,65]
[355870274,1741657755143,-500.0,0.000384,5]
[355870275,1741657755165,-278.6654841,0.00039011,2]
[355870276,1741657755188,-171.1221119,0.00040195,28]
[355870277,1741657755217,-31.11785561,0.00040195,28]
[355870278,1741657755238,-202.23996751,0.00042155,28]
[355870279,1741657755260,-416.66666667,0.00043857,2]
[355870280,1741657755281,-1000.0,0.00043879,10]
[355870282,1741657777270,159.498638,0.0003589,2]
[355870283,1741657777483,159.498638,0.00043112,2]
[355870285,1741657804365,151.0,0.00038311,2]
[355870286,1741657805047,207.65299083,0.00038859,2]
[355870287,1741657811142,600.0,0.00038311,2]
[355870288,1741657811823,622.2,0.00038366,2]
[355870289,1741657813041,645.2214,0.00038421,2]
[355870290,1741657813734,1168.51616972,0.00038476,2]
[355870330,1741657832851,-202.23996751,0.00044115,28]
[355870331,1741657832862,-39756.57017002,0.000458,8]
[355870355,1741657838518,-265.49503838,0.00045799,2]
[355870356,1741657838528,-504.26682381,0.00045799,2]
[355870357,1741657838538,-1006.40342461,0.000458,8]
[355870358,1741657838547,-611.24025398,0.00045975,120]
[355870359,1741657838557,-202.23996751,0.00046074,28]
[355870360,1741657838567,-2688.99,0.0004608,90]
[355870361,1741657838576,-2224.68461833,0.0004628,60]
[355870362,1741657838586,-22913.3928273,0.00046319,4]
[355870363,1741657838595,-2126.76,0.0004632,10]
[355870364,1741657838605,-22913.3928273,0.0004632,4]
[355870365,1741657838615,-326.49831442,0.00046329,120]
[355870367,1741657838624,-393.17885828,0.00046329,31]
[355870369,1741657838634,-40000.17651516,0.0004633,3]
[355870371,1741657838644,-8112.63734864,0.0004633,3]
[355870374,1741657838653,-167.215,0.00046354,76]
[355870376,1741657838663,-500.0,0.00046575,120]
[355870379,1741657838673,-500.0,0.00046773,10]
[355870380,1741657838682,-500.0,0.00046773,10]
[355870381,1741657838691,-22913.3928273,0.0004679,4]
[355870382,1741657838700,-165.68521461,0.00046792,2]
[355870383,1741657838709,-80000.0,0.000468,8]
[355870384,1741657838719,-22913.3928273,0.00046818,4]
[355870385,1741657838728,-169.66,0.00046882,120]
[355870386,1741657838738,-963.85371688,0.00046892,2]
[355870387,1741657838747,-503.47910889,0.0004696,10]
[355870388,1741657838756,-500.0,0.0004696,10]
[355870389,1741657838765,-5021.21,0.00047092,120]
[355870390,1741657838775,-533.07032974,0.00047123,120]
[355870391,1741657838785,-611.24025398,0.00047272,120]
[355870392,1741657838795,-22913.3928273,0.0004779,4]
[355870393,1741657838804,-80000.0,0.000478,8]
[355870394,1741657838814,-1020.24178586,0.00047945,120]
[355870395,1741657838823,-1545.23371464,0.00047945,10]
[355870396,1741657838833,-165.68521461,0.00047958,2]
[355870397,1741657838842,-22913.3928273,0.0004799,4]
[355870398,1741657838851,-1280.0,0.00048,120]
[355870399,1741657838861,-292.0,0.00048,90]
[355870400,1741657838870,-24075.0,0.00048,7]
[355870401,1741657838880,-1000.0,0.00048,120]
[355870402,1741657838888,-202.0,0.00048,90]
[355870403,1741657838898,-202.23996751,0.00048034,28]
[355870404,1741657838907,-168.07312237,0.00048288,120]
[355870405,1741657838918,-3357.55,0.000483,30]
[355870406,1741657838927,-500.0,0.00048301,6]
[355870407,1741657838936,-292.0,0.00048356,90]
[355870408,1741657838946,-500.0,0.00048373,10]
[355870409,1741657838955,-500.0,0.00048399,120]
[355870410,1741657838964,-157.43,0.00048399,30]
[355870411,1741657838974,-500.0,0.00048438,6]
[355870412,1741657838983,-667.06423747,0.00048456,90]
[355870413,1741657838992,-5021.21,0.00048462,120]
[355870414,1741657839001,-667.06423747,0.00048556,96]
[355870415,1741657839224,-611.24025398,0.00048569,120]
[355870416,1741657839234,-500.0,0.00048575,6]
[355870417,1741657839243,-299.0,0.00048628,2]
[355870418,1741657839252,-151.0,0.00048628,2]
[355870419,1741657839262,-667.06423747,0.00048656,98]
[355870420,1741657839271,-500.0,0.00048712,6]
[355870421,1741657839281,-489.49919738,0.00048749,2]
[355870422,1741657839290,-667.06423747,0.00048756,99]
[355870423,1741657839300,-500.0,0.00048773,10]
[355870424,1741657839310,-500.0,0.00048773,10]
[355870425,1741657839320,-45826.7856547,0.0004879,4]
[355870426,1741657839329,-80000.0,0.000488,8]
[355870427,1741657839339,-151.0,0.000488,120]
[355870428,1741657839348,-151.0,0.000488,120]
[355870429,1741657839358,-151.0,0.000488,120]
[355870430,1741657839367,-151.0,0.000488,120]
[355870431,1741657839377,-151.0,0.000488,120]
[355870432,1741657839387,-504.2,0.000488,30]
[355870433,1741657839397,-151.0,0.000488,120]
[355870434,1741657839406,-151.0,0.000488,120]
[355870435,1741657839418,-151.0,0.000488,120]
[355870436,1741657839427,-151.0,0.000488,120]
[355870437,1741657839437,-151.0,0.000488,120]
[355870438,1741657839446,-151.0,0.000488,120]
[355870439,1741657839455,-151.0,0.000488,120]
[355870440,1741657839465,-151.0,0.000488,120]
[355870441,1741657839474,-151.0,0.000488,120]
[355870442,1741657839483,-151.0,0.000488,120]
[355870443,1741657839493,-151.0,0.000488,120]
[355870444,1741657839502,-151.0,0.000488,120]
[355870445,1741657839512,-151.0,0.000488,120]
[355870446,1741657839522,-151.0,0.000488,120]
[355870447,1741657839531,-151.0,0.000488,120]
[355870448,1741657839551,-151.0,0.000488,120]
[355870449,1741657839563,-151.0,0.000488,120]
[355870450,1741657839574,-151.0,0.000488,120]
[355870451,1741657839586,-151.0,0.000488,120]
[355870452,1741657839597,-151.0,0.000488,120]
[355870453,1741657839607,-151.0,0.000488,120]
[355870454,1741657839617,-151.0,0.000488,120]
[355870455,1741657839628,-2559.85685206,0.00048828,2]
[355870456,1741657839639,-160.0,0.00048828,2]
[355870457,1741657839649,-500.0,0.00048849,6]
[355870458,1741657839659,-667.06423747,0.00048856,99]
[355870459,1741657839671,-600.0,0.0004892,2]
[355870460,1741657839681,-667.06423747,0.00048956,96]
[355870461,1741657839691,-164.94970062,0.00048959,120]
[355870462,1741657839701,-500.0,0.00048986,6]
[355870463,1741657839712,-2795.8971617,0.00049,4]
[355870464,1741657839721,-155.3619476,0.00049041,30]
[355870465,1741657839731,-667.06423747,0.00049056,91]
[355870466,1741657839741,-500.0,0.00049084,120]
[355870467,1741657839751,-161.03017844,0.00049096,120]
[355870468,1741657839761,-1549.4,0.000491,2]
[355870469,1741657839773,-500.0,0.00049123,6]
[355870470,1741657839783,-165.68521461,0.00049124,2]
[355870471,1741657839794,-667.06423747,0.00049156,99]
[355870472,1741657839804,-220.69551008,0.00049199,120]
[355870473,1741657839815,-667.06423747,0.00049256,94]
[355870474,1741657839825,-500.0,0.0004926,6]
[355870475,1741657839835,-255842.13280515,0.000493,30]
[355870476,1741657839844,-500.0,0.00049315,120]
[355870477,1741657839854,-500.0,0.00049315,120]
[355870478,1741657839864,-500.0,0.00049315,120]
[355870479,1741657839874,-500.0,0.00049315,120]
[355870480,1741657839884,-500.0,0.00049315,120]
[355870481,1741657839893,-508.87852592,0.00049315,120]
[355870482,1741657839903,-500.0,0.00049315,120]
[355870483,1741657839916,-500.0,0.00049315,120]
[355870484,1741657839925,-548.03183093,0.00049315,120]
[355870485,1741657839936,-509.10492384,0.00049315,120]
[355870486,1741657839946,-3795.29,0.00049315,120]
[355870487,1741657839956,-615.3,0.00049315,30]
[355870488,1741657839966,-924.4,0.00049315,120]
[355870489,1741657839977,-500.0,0.00049315,120]
[355870490,1741657839987,-505.4777875,0.00049315,120]
[355870491,1741657839997,-500.0,0.00049315,120]
[355870492,1741657840007,-514.49359693,0.00049315,120]
[355870493,1741657840017,-922.04,0.00049315,120]
[355870494,1741657840027,-500.0,0.00049315,120]
[355870495,1741657840037,-500.0,0.00049315,120]
[355870496,1741657840048,-500.0,0.00049315,120]
[355870498,1741657840058,-500.0,0.00049315,120]
[355870499,1741657840067,-500.0,0.00049315,120]
[355870500,1741657840077,-500.0,0.00049315,120]
[355870501,1741657840087,-500.0,0.00049315,120]
[355870502,1741657840097,-525.78065838,0.00049315,120]
[355870503,1741657840107,-500.0,0.00049315,120]
[355870504,1741657840118,-500.0,0.00049315,120]
[355870505,1741657840128,-500.0,0.00049315,120]
[355870506,1741657840140,-500.0,0.00049315,120]
[355870507,1741657840150,-500.0,0.00049315,120]
[355870508,1741657840160,-439.26256697,0.00049315,120]
[355870509,1741657840172,-500.0,0.00049315,120]
[355870510,1741657840183,-4653.91,0.00049315,120]
[355870511,1741657840193,-500.0,0.00049315,120]
[355870512,1741657840203,-1203.33,0.00049315,120]
[355870513,1741657840217,-1343.49,0.00049315,120]
[355870514,1741657840227,-500.0,0.00049315,120]
[355870516,1741657840237,-1378.11,0.00049315,120]
[355870518,1741657840247,-500.0,0.00049315,120]
[355870520,1741657840256,-500.0,0.00049315,120]
[355870522,1741657840266,-500.0,0.00049315,120]
[355870524,1741657840276,-334.49284002,0.00049315,120]
[355870525,1741657840286,-895.9,0.00049315,120]
[355870526,1741657840301,-923.2,0.00049315,120]
[355870527,1741657840312,-500.0,0.00049315,120]
[355870528,1741657840323,-500.0,0.00049315,120]
[355870529,1741657840334,-6191.64,0.00049315,120]
[355870530,1741657840344,-855.67,0.00049315,120]
[355870531,1741657840354,-200.0,0.00049315,7]
[355870533,1741657840365,-513.22324505,0.00049315,2]
[355870534,1741657840375,-542.35972909,0.00049315,120]
[355870535,1741657840386,-965.61,0.00049315,120]
[355870536,1741657840396,-500.0,0.00049315,120]
[355870537,1741657840406,-16430.21,0.00049315,2]
[355870538,1741657840418,-500.0,0.00049315,120]
[355870539,1741657840429,-500.0,0.00049315,120]
[355870540,1741657840439,-500.0,0.00049315,120]
[355870541,1741657840450,-500.0,0.00049315,120]
[355870542,1741657840461,-500.0,0.00049315,120]
[355870543,1741657840472,-500.0,0.00049315,120]
[355870544,1741657840483,-500.0,0.00049315,120]
[355870545,1741657840493,-500.0,0.00049315,120]
[355870546,1741657840503,-500.0,0.00049315,120]
[355870547,1741657840513,-500.0,0.00049315,120]
[355870548,1741657840523,-1637.46,0.00049315,120]
[355870549,1741657840533,-1386.63,0.00049315,120]
[355870550,1741657840543,-528.7687412,0.00049315,120]
[355870551,1741657840553,-500.0,0.00049315,120]
[355870552,1741657840562,-500.0,0.00049315,120]
[355870553,1741657840572,-500.0,0.00049315,120]
[355870554,1741657840582,-500.0,0.00049315,2]
[355870555,1741657840591,-500.0,0.00049315,120]
[355870556,1741657840601,-500.0,0.00049315,120]
[355870557,1741657840611,-500.0,0.00049315,120]
[355870558,1741657840621,-500.0,0.00049315,120]
[355870559,1741657840631,-539.29509253,0.00049315,120]
[355870560,1741657840641,-609.89,0.00049315,120]
[355870561,1741657840650,-8033.13,0.00049315,120]
[355870562,1741657840660,-500.0,0.00049315,120]
[355870563,1741657840672,-630.57,0.00049315,120]
[355870564,1741657840682,-500.0,0.00049315,120]
[355870565,1741657840691,-425.66544732,0.00049315,2]
[355870566,1741657840701,-1262.23,0.00049315,120]
[355870567,1741657840711,-673.32,0.00049315,2]
[355870568,1741657840721,-500.0,0.00049315,120]
[355870569,1741657840731,-779.03,0.00049315,120]
[355870570,1741657840740,-500.0,0.00049315,120]
[355870571,1741657840750,-150.0,0.00049315,10]
[355870572,1741657840759,-229.10021221,0.00049315,10]
[355870573,1741657840768,-667.06423747,0.00049356,90]
[355870574,1741657840778,-10051.21017184,0.0004939,4]
[355870622,1741657844081,-151.0,0.000488,120]
[355870623,1741657844091,-151.0,0.000488,120]
[355870624,1741657844100,-252.178393,0.000488,120]
[355870625,1741657844110,-500.0,0.00049315,120]
[355870626,1741657844121,-500.0,0.00049315,120]
[355870627,1741657844131,-1000.0,0.00049315,120]
[355870628,1741657844146,-500.0,0.00049315,120]
[355870629,1741657844156,-12862.18265546,0.0004939,4]
[355870630,1741657844165,-500.0,0.00049397,6]
[355870631,1741657844179,-500.0,0.00049399,120]
[355870632,1741657844190,-18488.80760156,0.000494,120]
[355870633,1741657844200,-504.2,0.000494,30]
[355870634,1741657844211,-667.06423747,0.00049456,96]
[355870635,1741657844222,-50000.0,0.000495,120]
[355870636,1741657844232,-50000.0,0.000495,120]
[355870637,1741657844242,-500.0,0.00049534,6]
[355870638,1741657844254,-667.06423747,0.00049556,95]
[355870639,1741657844265,-500.0,0.00049589,120]
[355870640,1741657844276,-569.56084933,0.00049589,120]
[355870641,1741657844286,-500.0,0.00049589,120]
[355870642,1741657844297,-500.0,0.00049589,120]
[355870643,1741657844308,-585.80983096,0.00049589,120]
[355870644,1741657844319,-500.0,0.00049589,120]
[355870645,1741657844330,-500.0,0.00049589,120]
[355870646,1741657844341,-3795.29,0.00049589,120]
[355870647,1741657844353,-615.3,0.00049589,30]
[355870648,1741657844365,-924.4,0.00049589,120]
[355870649,1741657844376,-500.0,0.00049589,120]
[355870650,1741657844388,-500.0,0.00049589,120]
[355870651,1741657844399,-922.04,0.00049589,120]
[355870652,1741657844411,-500.0,0.00049589,120]
[355870653,1741657844427,-500.0,0.00049589,120]
[355870654,1741657844439,-500.0,0.00049589,120]
[355870655,1741657844450,-4653.91,0.00049589,120]
[355870656,1741657844461,-500.0,0.00049589,120]
[355870657,1741657844471,-1188.19219474,0.00049589,120]
[355870658,1741657844806,-15.13780526,0.00049589,120]
[355870659,1741657844816,-56.20591291,0.00049589,120]
[355870660,1741657844876,-67.44136261,0.00049589,120]
[355870661,1741657844914,-283.05701977,0.00049589,120]
[355870662,1741657844980,-242163.41046508,0.000481,7]
[355870663,1741657844989,-936.78570471,0.00049589,120]
[355870664,1741657844999,-270.83918095,0.00049589,120]
[355870665,1741657845009,-1378.11,0.00049589,120]
[355870666,1741657845019,-500.0,0.00049589,120]
[355870667,1741657845028,-533.2742747,0.00049589,120]
[355870668,1741657845037,-500.0,0.00049589,120]
[355870669,1741657845046,-895.9,0.00049589,120]
[355870670,1741657845055,-923.2,0.00049589,120]
[355870671,1741657845065,-500.0,0.00049589,120]
[355870672,1741657845074,-500.0,0.00049589,120]
[355870673,1741657845084,-6191.64,0.00049589,120]
[355870674,1741657845093,-855.67,0.00049589,120]
[355870675,1741657845102,-200.0,0.00049589,7]
[355870676,1741657845112,-965.61,0.00049589,120]
[355870677,1741657845127,-542.66380525,0.00049589,120]
[355870678,1741657845137,-16430.21,0.00049589,2]
[355870679,1741657845148,-500.0,0.00049589,120]
[355870680,1741657845158,-500.0,0.00049589,120]
[355870681,1741657845170,-500.0,0.00049589,120]
[355870682,1741657845180,-500.0,0.00049589,120]
[355870683,1741657845190,-500.0,0.00049589,120]
[355870684,1741657845203,-500.0,0.00049589,120]
[355870685,1741657845215,-500.0,0.00049589,120]
[355870686,1741657845225,-500.0,0.00049589,120]
[355870687,1741657845235,-520.88613351,0.00049589,120]
[355870688,1741657845245,-500.0,0.00049589,120]
[355870689,1741657845255,-1637.46,0.00049589,120]
[355870690,1741657845264,-1386.63,0.00049589,120]
[355870691,1741657845274,-500.0,0.00049589,120]
[355870692,1741657845284,-500.0,0.00049589,120]
[355870693,1741657845293,-500.0,0.00049589,120]
[355870694,1741657845303,-500.0,0.00049589,2]
[355870695,1741657845313,-500.0,0.00049589,120]
[355870696,1741657845323,-500.0,0.00049589,120]
[355870697,1741657845333,-514.81653651,0.00049589,120]
[355870698,1741657845344,-500.0,0.00049589,120]
[355870699,1741657845354,-609.89,0.00049589,120]
[355870700,1741657845364,-8033.13,0.00049589,120]
[355870701,1741657845374,-330.96430724,0.00049589,120]
[355870702,1741657845384,-630.57,0.00049589,120]
[355870703,1741657845394,-500.0,0.00049589,120]
[355870704,1741657845403,-1262.23,0.00049589,120]
[355870705,1741657845412,-673.32,0.00049589,2]
[355870706,1741657845424,-500.0,0.00049589,120]
[355870707,1741657845434,-779.03,0.00049589,120]
[355870708,1741657845443,-500.0,0.00049589,120]
[355870709,1741657845452,-523.97743146,0.00049589,120]
[355870710,1741657845461,-500.0,0.00049589,120]
[355870711,1741657845472,-707.65311398,0.00049589,120]
[355870712,1741657845481,-500.0,0.00049589,120]
[355870713,1741657845490,-667.06423747,0.00049656,99]
[355870714,1741657845499,-500.0,0.00049671,6]
[355870715,1741657845509,-500.0,0.00049673,120]
[355870716,1741657845518,-667.06423747,0.00049756,91]
[355870717,1741657845527,-500.0,0.00049769,120]
[355870718,1741657845538,-157.43,0.00049769,30]
[355870719,1741657845547,-500.0,0.00049773,10]
[355870720,1741657845558,-500.0,0.00049773,10]
[355870721,1741657845567,-500.0,0.00049773,10]
[355870722,1741657845577,-500.0,0.00049773,10]
[355870723,1741657845586,-500.0,0.00049773,10]
[355870724,1741657845596,-558.00897038,0.00049773,10]
[355870725,1741657845605,-500.0,0.00049773,10]
[355870726,1741657845615,-501.30324771,0.00049773,10]
[355870727,1741657845624,-510.79032083,0.00049773,10]
[355870728,1741657845633,-617.98334687,0.00049773,10]
[355870729,1741657845643,-500.0,0.00049773,10]
[355870730,1741657845652,-500.0,0.00049773,10]
[355870731,1741657845662,-500.0,0.00049773,10]
[355870732,1741657845673,-500.0,0.00049773,10]
[355870733,1741657845682,-500.0,0.00049773,10]
[355870734,1741657845691,-505.6641671,0.00049773,10]
[355870735,1741657845701,-500.0,0.00049773,10]
[355870736,1741657845710,-500.0,0.00049773,10]
[355870737,1741657845719,-500.0,0.00049773,10]
[355870738,1741657845912,-45826.7856547,0.0004979,4]
[355870739,1741657845924,-80000.0,0.000498,8]
[355870740,1741657845934,-500.0,0.00049808,6]
[355870741,1741657845944,-5021.21,0.00049832,120]
[355870742,1741657845954,-667.06423747,0.00049856,99]
[355870743,1741657845964,-375.26764459,0.00049863,120]
[355870744,1741657845973,-500.0,0.00049863,120]
[355870745,1741657845983,-500.0,0.00049863,120]
[355870746,1741657845993,-500.0,0.00049863,120]
[355870747,1741657846002,-500.0,0.00049863,120]
[355870748,1741657846011,-3795.29,0.00049863,120]
[355870749,1741657846021,-615.3,0.00049863,30]
[355870750,1741657846031,-924.4,0.00049863,120]
[355870751,1741657846040,-500.0,0.00049863,120]
[355870752,1741657846050,-500.0,0.00049863,120]
[355870753,1741657846060,-922.04,0.00049863,120]
[355870754,1741657846069,-500.0,0.00049863,120]
[355870755,1741657846079,-500.0,0.00049863,120]
[355870756,1741657846089,-500.0,0.00049863,120]
[355870757,1741657846099,-4653.91,0.00049863,120]
[355870758,1741657846108,-500.0,0.00049863,120]
[355870760,1741657846119,-1203.33,0.00049863,120]
[355870762,1741657846128,-1343.49,0.00049863,120]
[355870764,1741657846138,-1378.11,0.00049863,120]
[355870766,1741657846151,-500.0,0.00049863,120]
[355870768,1741657846160,-552.12871049,0.00049863,120]
[355870770,1741657846172,-895.9,0.00049863,120]
[355870772,1741657846182,-923.2,0.00049863,120]
[355870774,1741657846191,-500.0,0.00049863,120]
[355870776,1741657846200,-500.0,0.00049863,120]
[355870779,1741657846211,-6191.64,0.00049863,120]
[355870782,1741657846224,-855.67,0.00049863,120]
[355870784,1741657846234,-200.0,0.00049863,7]
[355870786,1741657846244,-965.61,0.00049863,120]
[355870787,1741657846254,-16430.21,0.00049863,2]
[355870788,1741657846263,-500.0,0.00049863,120]
[355870789,1741657846274,-531.90537679,0.00049863,120]
[355870790,1741657846283,-500.0,0.00049863,120]
[355870792,1741657846293,-500.0,0.00049863,120]